bitfinex-derivatives/quotes_ETHF0:USTF0_20251203
["timestamp","ask_amount","ask_price","bid_price","bid_amount"]
[1764785393827,3.02810262,3134.0,3133.9,1.9837]
[1764785395527,3.59040262,3134.0,3133.9,1.9837]
[1764785396229,2.05360262,3134.0,3133.9,1.9837]
[1764785396536,2.013,3134.0,3133.9,1.9837]
[1764785398936,1.0385,3134.0,3133.9,1.9837]
[1764785399240,2.013,3134.0,3133.9,1.9837]
[1764785400432,1.0385,3134.0,3133.9,1.9837]
[1764785400633,0.00319088,3134.2,3134.1,1.9837]
[1764785401134,2.01619088,3134.2,3134.1,1.9837]
[1764785401627,2.013,3134.1,3134.0,0.9794]
[1764785401825,3.02821001,3134.1,3134.0,1.9837]
[1764785402026,3.02821729,3134.1,3133.6,3.2078]
[1764785402239,2.013,3134.1,3133.6,3.2078]
[1764785402424,2.6127,3134.0,3133.5,0.5269]
[1764785402631,2.6127,3134.0,3133.9,1.9837]
[1764785402831,3.30364913,3134.0,3133.9,1.9837]
[1764785403130,3.30364635,3134.0,3133.9,2.0165]
[1764785403438,1.8785,3133.6,3133.5,1.9277]
[1764785403932,2.4116,3133.0,3132.9,0.89943959]
[1764785404357,2.4116,3133.0,3132.9,0.00883959]
[1764785404737,2.4116,3133.0,3132.9,1.93653959]
[1764785404936,2.4116,3133.0,3132.9,0.89943959]
[1764785405234,2.4116,3133.0,3132.9,0.00883959]
[1764785405941,3.10270184,3133.0,3132.9,0.00883959]
[1764785406139,2.4116,3133.0,3132.9,0.00883959]
[1764785406338,3.42684694,3133.0,3132.0,2.01228154]
[1764785406540,3.2078,3132.7,3132.0,2.01228154]
[1764785406733,1.8785,3132.7,3132.6,1.9277]
[1764785406937,2.56937153,3132.7,3132.6,1.9277]
[1764785407138,1.8785,3132.7,3132.6,1.9277]
[1764785407438,1.8785,3132.7,3132.6,0.00333173]
[1764785407633,1.8785,3132.4,3132.3,1.93248629]
[1764785408229,2.4116,3133.0,3132.9,1.9277]
[1764785408427,5.0863,3133.6,3133.5,0.8906]
[1764785408634,5.0863,3133.6,3133.5,0.00390688]
[1764785410341,7.36884732,3133.6,3133.5,0.00390688]
[1764785411938,6.0960454,3133.6,3133.5,0.00390688]
[1764785415940,6.09599676,3133.6,3133.5,0.00390688]
[1764785416339,6.09599676,3133.6,3133.5,0.89450688]
[1764785416540,5.13259676,3133.6,3133.5,2.49840688]
[1764785416844,5.0863,3133.6,3133.5,1.93160688]
[1764785417041,5.0863,3133.6,3133.5,0.00390688]
[1764785417243,5.0863,3133.6,3133.5,1.93160688]
[1764785417748,5.0863,3133.6,3133.5,0.89450688]
[1764785417949,5.0863,3133.6,3133.5,0.00390688]
[1764785418751,6.09582016,3133.6,3133.5,0.00390688]
[1764785418949,5.0863,3133.6,3133.5,0.00390688]
[1764785419545,5.0863,3133.6,3133.5,1.93160688]
[1764785420052,5.0863,3133.6,3133.5,0.89450688]
[1764785420352,6.09588685,3133.6,3133.5,0.89450688]
[1764785420552,6.09588685,3133.6,3133.5,0.00390688]
[1764785421354,5.41012198,3133.6,3133.5,0.89450688]
[1764785421547,5.0863,3133.6,3133.5,1.93160688]
[1764785421954,4.1229,3133.6,3133.5,2.49840688]
[1764785422343,4.7226,3134.0,3133.9,0.8906]
[1764785422548,1.88169088,3134.2,3134.1,1.9277]
[1764785422744,0.9151,3133.8,3133.7,5.1355]
[1764785423053,1.8785,3133.8,3133.7,1.9277]
[1764785423556,1.8785,3133.6,3133.5,0.89450688]
[1764785423742,1.8785,3133.6,3133.5,1.93160688]
[1764785423951,1.8785,3133.6,3133.5,0.89450688]
[1764785424350,1.8785,3133.6,3133.5,0.00390688]
[1764785424745,6.0959728,3133.6,3133.5,0.00390688]
[1764785425050,6.0959728,3133.6,3133.5,1e-08]
[1764785426159,6.0959728,3133.6,3133.5,0.89060001]
[1764785426452,6.0959728,3133.6,3133.5,1e-08]
[1764785427456,6.0960551,3133.6,3133.5,1e-08]
[1764785427657,2.8882551,3133.6,3133.5,1.92770001]
[1764785427858,2.88829795,3133.6,3133.5,1.92770001]
[1764785429560,1.92489795,3133.6,3133.5,2.49450001]
[1764785429759,2.88829795,3133.6,3133.5,2.49450001]
[1764785430456,5.18099795,3133.6,3133.5,1e-08]
[1764785430657,4.21759795,3133.6,3133.5,1e-08]
[1764785432457,6.15309554,3133.6,3133.5,1e-08]
[1764785432756,10.21759795,3133.6,3133.5,1e-08]
[1764785432962,8.08694894,3133.6,3133.5,1e-08]
[1764785433763,6.36818513,3133.6,3133.5,1e-08]
[1764785434258,12.36818513,3133.6,3133.5,1e-08]
[1764785435160,53.16818513,3133.6,3133.5,1e-08]
[1764785435363,48.72713834,3133.6,3133.5,1e-08]
[1764785435553,45.01759795,3133.6,3133.5,1e-08]
[1764785435861,45.17712795,3133.6,3133.5,1e-08]
[1764785436365,46.42272435,3133.6,3133.5,1e-08]
[1764785437058,46.47828696,3133.6,3133.5,1e-08]
[1764785437365,1.747,3132.4,3132.3,1.76638629]
[1764785437563,1.747,3132.4,3132.3,0.81618629]
[1764785437952,0.8714,3132.4,3132.3,1.76638629]
[1764785438155,0.8714,3132.4,3131.1,1.68324923]
[1764785438156,0.15963,3131.6,3131.1,1.68324923]
[1764785438373,4.4533964,3131.2,3131.1,0.00304949]
[1764785438659,5.46425861,3131.2,3130.5,0.50934949]
[1764785438962,3.2078,3130.6,3130.5,2.15674949]
[1764785439163,3.21258629,3130.9,3130.8,1.6474]
[1764785439565,3.21258629,3130.9,3130.8,1.65121063]
[1764785441055,0.00478629,3130.9,3130.8,1.65121063]
[1764785441263,3.2078,3131.3,3131.2,1.6474]
[1764785442569,3.2078,3131.3,3131.0,0.5161]
[1764785443067,3.2078,3131.3,3131.2,0.8386]
[1764785443266,3.2078,3131.3,3131.2,1.6474]
[1764785452873,0.00889729,3131.6,3131.5,2.1635]
[1764785454072,40.8,3132.5,3131.6,1.6474]
[1764785454274,3.2078,3132.3,3132.0,1.3547]
[1764785455076,3.2078,3132.3,3132.0,0.5161]
[1764785455282,5.15001831,3132.3,3131.8,0.00478629]
[1764785455484,3.2078,3131.9,3131.8,0.00478629]
[1764785457986,4.21304783,3131.9,3131.8,0.00478629]
[1764785458981,3.2078,3131.9,3131.8,0.00478629]
[1764785459176,3.89106164,3131.9,3131.8,0.00478629]
[1764785460381,4.21390421,3131.9,3131.8,0.00478629]
[1764785460974,4.21390421,3131.9,3131.0,1.3547]
[1764785460975,4.37352421,3131.9,3131.0,1.3547]
[1764785461175,3.2078,3131.5,3131.0,1.3547]
[1764785462083,1.00716992,3131.4,3130.9,3.21258629]
[1764785462383,1.00715253,3131.3,3131.0,1.3547]
[1764785462683,16.09544,3131.5,3131.0,1.3547]
[1764785462984,1.00778649,3131.4,3131.0,1.3547]
[1764785463186,0.4034,3131.1,3131.0,2.1635]
[1764785463578,3.2078,3131.5,3131.0,2.1635]
[1764785463783,3.6112,3131.5,3131.4,1.8464]
[1764785463980,4.2958665,3131.5,3131.4,1.8464]
[1764785464180,4.0941665,3131.5,3131.4,1.8464]
[1764785464381,3.4095,3131.5,3131.4,1.8464]
[1764785464576,3.6112,3131.5,3131.4,1.8464]
[1764785465083,4.2964163,3131.5,3131.4,1.8464]
[1764785465489,4.62008948,3131.5,3131.4,1.8464]
[1764785465783,1.21058948,3131.5,3131.4,1.8464]
[1764785465987,1.41228948,3131.5,3131.4,1.8464]
[1764785468381,5.86671981,3131.5,3131.4,1.8464]
[1764785468979,5.86671981,3131.5,3131.0,0.5161]
[1764785469190,1.00888948,3131.4,3131.0,0.5161]
[1764785469487,1.24663033,3131.7,3131.2,1.8464]
[1764785469685,0.72766346,3131.6,3131.5,1.6828]
[1764785470388,0.72766346,3131.6,3131.5,2.4734]
[1764785470986,3.2078,3131.9,3131.5,2.4734]
[1764785471183,0.4072238,3132.3,3132.2,1.0558]
[1764785471380,1.97810706,3132.3,3132.2,1.0558]
[1764785471590,0.4034,3132.1,3132.0,2.4734]
[1764785471790,0.72765293,3132.1,3131.5,0.627]
[1764785471991,1.44833033,3131.7,3131.6,1.8464]
[1764785472187,1.65003033,3132.0,3131.9,1.0558]
[1764785472388,1.97423848,3132.0,3131.9,1.8464]
[1764785472588,0.4034,3131.6,3131.5,2.4734]
[1764785472887,1.65003033,3131.6,3131.5,2.4734]
[1764785473083,5.18204743,3131.6,3131.5,0.627]
[1764785473283,0.4034,3131.1,3131.0,0.5161]
[1764785473482,1.97424743,3131.1,3131.0,0.5161]
[1764785473889,0.4034,3131.0,3130.9,0.00478629]
[1764785474083,0.7276171,3131.0,3130.9,0.00478629]
[1764785474282,0.7276171,3131.0,3130.9,1.06058629]
[1764785474487,0.7276171,3131.0,3130.9,0.00478629]
[1764785475691,0.7276171,3131.0,3130.9,1.06058629]
[1764785476183,0.7276171,3131.0,3130.9,0.00478629]
[1764785476492,0.4034,3130.9,3130.8,0.00381063]
[1764785476692,0.7276171,3130.9,3130.8,0.00381063]
[1764785478296,0.8872771,3130.9,3130.8,0.00381063]
[1764785478693,13.6142771,3130.9,3130.8,0.00381063]
[1764785479785,13.6142771,3130.9,3130.8,1.05961063]
[1764785479786,0.7276171,3130.9,3130.8,1.05961063]
[1764785479988,0.3242171,3130.9,3130.8,1.85021063]
[1764785480195,0.2017,3131.1,3131.0,2.4734]
[1764785480495,0.52538805,3131.1,3131.0,2.4734]
[1764785480897,0.72708805,3131.1,3131.0,2.4734]
[1764785482496,0.52538805,3131.1,3131.0,2.4734]
[1764785482901,3.2078,3131.2,3131.1,1.8464]
[1764785483091,3.4095,3131.6,3131.5,1.8464]
[1764785483296,3.73318709,3131.6,3131.5,2.4734]
[1764785483500,3.2078,3131.6,3131.5,2.4734]
[1764785485198,1.9481238,3132.3,3131.5,9.8348]
[1764785485393,1.9443,3131.8,3131.7,5.0542]
[1764785486099,1.9443,3131.8,3131.7,3.2078]
[1764785486295,1.1047,3131.8,3131.7,4.2636]
[1764785486597,1.9443,3131.8,3131.7,4.2636]
[1764785486795,1.1047,3131.8,3131.7,5.0542]
[1764785487190,1.9443,3131.8,3131.7,3.2078]
[1764785487395,1.9443,3131.8,3131.7,4.2636]
[1764785487703,1.1047,3131.8,3131.7,5.0542]
[1764785488106,1.9443,3131.8,3131.7,4.2636]
[1764785488299,0.8434238,3132.3,3131.9,1.0558]
[1764785488502,2.26791151,3132.2,3132.1,1.8464]
[1764785489004,1.42831151,3132.2,3132.1,1.8464]
[1764785489302,2.26791151,3132.2,3131.7,3.2078]
[1764785489493,1.9443,3132.2,3131.7,3.2078]
[1764785489697,1.9443,3132.2,3132.1,1.0558]
[1764785489898,2.26782463,3132.2,3131.7,3.2078]
[1764785490101,1.1047,3131.8,3131.7,5.0542]
[1764785490302,1.9481238,3132.3,3132.2,1.0558]
[1764785490504,2.27160786,3132.3,3132.2,5.0542]
[1764785490696,1.1085238,3132.3,3132.2,5.0542]
[1764785491403,1.9481238,3132.3,3132.2,5.0542]
[1764785491591,1.9443,3131.9,3131.8,5.0542]
[1764785491998,1.1047,3131.9,3131.8,5.0542]
[1764785492193,1.9443,3131.9,3131.8,5.0542]
[1764785492397,1.1047,3131.9,3131.8,5.0542]
[1764785493001,0.0038238,3132.3,3131.8,5.0542]
[1764785493204,1.1085238,3132.3,3132.2,1.8464]
[1764785493404,2.167,3132.1,3132.0,2.1055]
[1764785493793,1.1091,3132.1,3132.0,2.1055]
[1764785494303,1.1091,3132.1,3132.0,2.7914]
[1764785495108,2.167,3131.9,3131.8,4.271]
[1764785495302,2.167,3131.9,3131.8,5.3133]
[1764785495500,2.1708238,3132.3,3132.2,1.0632]
[1764785495704,2.49409432,3132.3,3132.2,2.1055]
[1764785495905,2.49409432,3132.3,3132.2,1.0632]
[1764785496105,1.38499432,3132.3,3131.8,3.2078]
[1764785496406,1.1091,3131.9,3131.8,5.3133]
[1764785497906,2.167,3131.9,3131.8,4.271]
[1764785498207,2.167,3131.9,3131.8,3.2078]
[1764785498208,3.44149493,3131.9,3131.8,3.2078]
[1764785498504,3.44149493,3131.9,3131.0,1.5781]
[1764785498505,2.8558,3131.5,3131.4,3.2078]
[1764785499211,2.167,3131.1,3131.0,5.2221]
[1764785499707,2.167,3131.1,3131.0,5.3133]
[1764785500210,1.1091,3131.1,3131.0,5.3133]
[1764785500405,2.167,3131.7,3131.6,2.1055]
[1764785500606,2.167,3131.7,3131.4,2.1055]
[1764785500607,2.8558,3131.5,3131.4,2.1055]
[1764785500805,2.167,3131.1,3131.0,4.271]
[1764785501002,2.167,3131.1,3131.0,5.3133]
[1764785501208,2.167,3131.1,3131.0,4.271]
[1764785501607,0.6888,3131.5,3131.0,5.9992]
[1764785501907,2.8558,3131.5,3131.4,1.0632]
[1764785502207,1.1091,3131.1,3131.0,4.9569]
[1764785502506,2.167,3131.1,3131.0,5.3133]
[1764785502904,2.167,3131.1,3131.0,3.2078]
[1764785503101,2.167,3131.1,3131.0,4.271]
[1764785503705,2.167,3131.1,3131.0,5.3133]
[1764785504214,2.167,3131.1,3131.0,3.2078]
[1764785505900,1.7429,3131.5,3131.4,1.0752]
[1764785506207,2.43513897,3131.5,3131.4,2.1362]
[1764785506713,2.43513897,3131.5,3131.4,1.0752]
[1764785506913,2.1118,3131.1,3131.0,6.0069]
[1764785507106,2.1118,3130.9,3130.8,1.07901063]
[1764785507414,2.1118,3130.9,3130.8,0.00381063]
[1764785507813,2.1118,3130.9,3130.8,1.07901063]
[1764785508110,2.1118,3130.9,3130.8,2.14001063]
[1764785508311,2.1118,3130.9,3130.8,1.07901063]
[1764785508715,2.1118,3130.9,3130.8,0.00381063]
[1764785509012,2.43532014,3130.9,3130.8,0.00381063]
[1764785509504,2.43532014,3130.9,3130.8,1.07901063]
[1764785509816,2.43532014,3130.9,3130.8,0.00381063]
[1764785511314,2.43532014,3130.9,3130.8,1.07901063]
[1764785511612,2.43532014,3130.9,3130.8,0.00381063]
[1764785514417,0.32352014,3130.9,3130.8,2.14001063]
[1764785514604,3.2078,3131.3,3130.8,2.14001063]
[1764785514811,0.32325315,3131.2,3130.8,2.14001063]
[1764785515011,2.43505315,3131.2,3131.1,1.0752]
[1764785515416,0.32325315,3131.2,3131.1,2.1362]
[1764785515609,1.0541,3131.2,3131.1,5.344]
[1764785516221,4.2619,3131.7,3131.6,2.1362]
[1764785516513,1.71847246,3132.4,3131.6,2.1362]
[1764785516716,3.2078,3132.1,3131.6,2.1362]
[1764785516910,1.0541,3131.7,3131.6,2.1362]
[1764785517819,2.1118,3132.0,3131.9,2.1362]
[1764785518117,3.09470881,3132.0,3131.5,3.8707]
[1764785518317,2.43500881,3131.9,3131.8,1.0752]
[1764785518509,0.32320881,3131.9,3131.8,2.1362]
[1764785518713,0.0038238,3132.3,3132.0,2.7991]
[1764785518914,1.0579238,3132.3,3132.2,2.1362]
[1764785519114,2.43883185,3132.3,3132.2,1.0752]
[1764785519413,1.38113185,3132.3,3132.2,2.1362]
[1764785519618,1.0541,3132.1,3132.0,2.1362]
[1764785519819,0.0038238,3132.3,3132.2,2.1362]
[1764785520119,2.1156238,3132.3,3132.2,1.0752]
[1764785520320,2.1156238,3132.3,3132.2,2.1362]
[1764785520722,2.1118,3132.1,3131.5,3.8707]
[1764785520925,2.1118,3132.1,3132.0,2.1362]
[1764785522219,1.0541,3132.1,3132.0,2.1362]
[1764785522415,1.0579238,3132.3,3132.2,2.1362]
[1764785522621,1.38117591,3132.3,3132.2,2.1362]
[1764785522921,2.43887591,3132.3,3132.2,1.0752]
[1764785523724,2.43887591,3132.3,3132.2,2.1362]
[1764785523927,2.0228,3132.1,3132.0,1.0]
[1764785524226,2.0228,3132.1,3132.0,2.0587]
[1764785524629,0.9911,3132.1,3132.0,2.6174]
[1764785524921,2.0228,3132.1,3132.0,2.0587]
[1764785525628,2.0228,3132.1,3131.5,3.8707]
[1764785525824,2.0228,3132.1,3132.0,1.0]
[1764785526026,2.0228,3132.1,3132.0,2.0587]
[1764785526724,2.0266238,3132.3,3132.2,2.0587]
[1764785526925,0.0038238,3132.3,3132.2,2.0587]
[1764785527129,0.00319088,3132.5,3132.4,2.0587]
[1764785527327,0.99429088,3132.5,3132.4,2.0587]
[1764785527528,0.00319088,3132.5,3132.4,2.0587]
[1764785528126,0.00577305,3132.5,3132.4,2.0587]
[1764785532348,0.9911,3133.5,3133.4,2.0587]
[1764785533049,2.18231,3133.9,3133.5,0.6092]
[1764785533241,0.9911,3133.6,3133.5,2.67181646]
[1764785533442,1.71847246,3134.6,3133.5,2.67181646]
[1764785533443,0.15945,3135.1,3134.0,0.6092]
[1764785533742,2.0228,3134.7,3134.6,4.2078]
[1764785534444,0.9911,3134.7,3134.6,5.2665]
[1764785534647,0.99381152,3134.7,3134.6,5.2665]
[1764785534845,0.00271152,3134.7,3134.6,5.2665]
[1764785535349,2.0228,3135.1,3134.6,3.2078]
[1764785535544,0.9911,3135.5,3135.4,2.0587]
[1764785535750,0.9911,3135.5,3135.4,5.2665]
[1764785535946,0.9911,3136.0,3135.9,2.0587]
[1764785536248,0.627,3138.0,3137.1,2.0587]
[1764785536449,0.9911,3137.4,3137.3,3.2078]
[1764785536648,2.0228,3137.4,3137.3,3.2078]
[1764785536951,2.65289531,3138.0,3137.4,0.6092]
[1764785537152,0.00309531,3138.0,3137.9,2.0587]
[1764785537850,0.627,3139.5,3138.0,0.6092]
[1764785538148,0.9911,3139.4,3139.3,3.2078]
[1764785538344,2.0228,3139.1,3139.0,0.00477859]
[1764785538755,2.0260419,3139.1,3139.0,0.00701141]
[1764785538943,0.0032419,3139.1,3139.0,1.00701141]
[1764785539147,0.0032419,3139.1,3139.0,2.06571141]
[1764785539447,0.627,3139.8,3139.0,2.06571141]
[1764785539647,0.627,3139.8,3139.2,3.2078]
[1764785539947,0.9911,3139.3,3139.2,3.2078]
[1764785540144,0.627,3139.8,3139.2,4.2078]
[1764785540340,0.9911,3139.3,3139.2,3.2078]
[1764785540545,0.63052193,3139.8,3139.2,4.2078]
[1764785540847,2.0228,3139.3,3139.2,3.2078]
[1764785541950,2.0228,3139.1,3138.2,3.2078]
[1764785542156,2.0228,3139.1,3138.6,3.2078]
[1764785542350,2.0228,3139.1,3138.6,3.817]
[1764785542555,2.0228,3139.1,3138.6,3.2078]
[1764785542753,1.9822,3138.7,3138.6,4.2078]
[1764785542963,2.0228,3138.7,3138.6,3.21116486]
[1764785543257,2.0228,3138.7,3138.6,0.00336486]
[1764785543649,8.0228,3138.7,3138.3,0.00477859]
[1764785543850,2.0228,3137.7,3137.6,3.2078]
[1764785544157,0.9911,3137.7,3137.6,3.2078]
[1764785544354,0.627,3138.0,3137.6,4.2078]
[1764785544759,0.627,3138.0,3137.6,4.21055112]
[1764785546763,0.9911,3137.7,3137.6,4.21055112]
[1764785546960,3.36708,3138.4,3137.6,5.11735112]
[1764785547148,0.627,3138.6,3137.6,0.00275112]
[1764785547149,1.8252,3137.7,3137.6,0.00275112]
[1764785547462,1.8252,3137.3,3136.8,3.762]
[1764785547761,0.9243,3137.3,3137.2,4.1974]
[1764785548058,44.72391,3138.0,3137.2,4.1974]
[1764785548254,1.8252,3137.3,3137.2,0.9926038]
[1764785548459,0.9243,3137.3,3137.2,0.0030038]
[1764785548862,1.8252,3137.3,3137.2,0.0030038]
[1764785549255,1.8252,3137.0,3136.9,0.00477859]
[1764785549458,1.8252,3136.1,3136.0,3.2078]
[1764785549656,0.15938,3136.5,3136.0,3.2078]
[1764785549657,0.15938,3136.5,3136.0,0.9896]
[1764785549863,3.2078,3136.4,3136.0,0.9896]
[1764785550361,1.8252,3136.1,3136.0,0.00372175]
[1764785552060,0.16415859,3136.5,3136.4,1.9068]
[1764785552061,0.00477859,3136.5,3136.4,1.9068]
[1764785552265,0.00477859,3136.5,3136.4,5.1146]
[1764785553162,0.5568,3137.4,3136.4,11.1146]
[1764785553362,0.5568,3137.4,3136.9,3.2078]
[1764785553568,1.8619,3137.0,3136.5,3.2078]
[1764785554564,0.00477859,3137.1,3137.0,0.8794]
[1764785554866,0.94417859,3137.1,3137.0,4.0872]
[1764785555262,1.86667859,3137.1,3136.4,3.2078]
[1764785556358,0.94417859,3137.1,3136.8,3.2078]
[1764785556558,0.00477859,3137.1,3137.0,1.8574]
[1764785557964,0.20241,3137.7,3137.0,1.8574]
[1764785558163,1.8619,3137.5,3136.8,3.7895]
[1764785558963,0.5686,3137.4,3136.8,3.7895]
[1764785559766,0.00477859,3137.5,3137.3,0.8794]
[1764785559962,0.00477859,3137.5,3137.4,1.8574]
[1764785560367,0.00477859,3137.5,3137.4,2.4391]
[1764785561071,0.00477859,3137.5,3137.4,1.8574]
[1764785561270,0.94417859,3137.5,3137.2,3.2078]
[1764785561769,0.00477859,3137.5,3137.4,0.8794]
[1764785562170,0.00477859,3137.5,3137.4,2.4391]
[1764785563973,0.00477859,3137.5,3137.4,2.3808]
[1764785564168,0.00283446,3138.0,3137.6,1.8232]
[1764785564373,3.2078,3138.5,3138.3,1.8232]
[1764785564570,1.9327635,3138.9,3138.4,1.8232]
[1764785564767,0.32112283,3138.8,3138.4,1.8232]
[1764785565272,0.8798,3138.5,3138.4,0.8934]
[1764785565477,0.8798,3138.5,3138.4,0.89733666]
[1764785565478,1.20092283,3138.5,3138.4,0.89733666]
[1764785565673,2.06992283,3138.5,3138.4,0.00393666]
[1764785566573,2.06992283,3138.5,3136.2,0.5542]
[1764785566574,1.7488,3138.4,3137.4,3.2078]
[1764785566778,1.9327635,3137.8,3137.4,3.2078]
[1764785567572,0.8798,3137.5,3137.4,0.00232991]
[1764785567768,1.9327635,3137.8,3137.4,1.82552991]
[1764785567970,0.32169672,3137.7,3137.6,1.8232]
[1764785568165,2.04016918,3138.2,3137.6,1.8232]
[1764785568369,0.32169672,3138.1,3137.6,1.8232]
[1764785568575,2.07049672,3138.1,3137.4,3.72712991]
[1764785568781,0.32169672,3138.0,3137.9,0.8934]
[1764785568970,0.32169672,3138.0,3137.9,1.8232]
[1764785569172,0.32169672,3138.0,3137.9,0.8934]
[1764785569173,1.20149672,3138.0,3137.9,0.8934]
[1764785569367,2.07049672,3138.0,3137.4,3.72712991]
[1764785569573,0.32169672,3137.9,3137.4,3.72712991]
[1764785569773,0.32169672,3137.8,3137.7,0.8934]
[1764785569970,1.7488,3137.5,3137.4,3.21012991]
[1764785570174,2.07095103,3137.5,3137.4,3.21012991]
[1764785570373,0.32215103,3137.5,3137.4,5.03332991]
[1764785570575,1.9327635,3137.8,3137.6,0.8934]
[1764785570773,1.9327635,3137.8,3137.4,3.21012991]
[1764785570774,2.07095376,3137.7,3137.4,3.21012991]
[1764785570975,0.32215376,3137.6,3137.4,3.21012991]
[1764785571175,1.9327635,3137.8,3137.4,5.03332991]
[1764785571176,0.32215376,3137.5,3137.4,5.03332991]
[1764785571471,1.20195376,3137.5,3137.4,3.21012991]
[1764785571677,2.07095376,3137.5,3137.4,3.21012991]
[1764785572179,1.20195376,3137.5,3137.4,3.21012991]
[1764785572381,2.07095376,3137.5,3137.4,3.21012991]
[1764785573581,1.20195376,3137.5,3137.4,3.21012991]
[1764785573791,2.3012,3137.4,3137.3,0.00477859]
[1764785574090,4.34182622,3137.4,3137.3,0.00477859]
[1764785574585,1.7488,3137.1,3137.0,3.2078]
[1764785574888,4.00371726,3137.1,3137.0,3.21181253]
[1764785575889,4.00371726,3137.1,3137.0,0.00401253]
[1764785576188,1.20195376,3137.1,3137.0,0.89741253]
[1764785576391,2.07095376,3137.1,3137.0,0.00401253]
[1764785576883,0.32215376,3137.1,3137.0,1.82721253]
[1764785577083,1.9327635,3137.5,3137.2,0.9298]
[1764785577292,0.32267961,3137.4,3137.3,1.8232]
[1764785578493,1.20247961,3137.4,3137.3,0.8934]
[1764785578988,0.32267961,3137.4,3137.3,1.8232]
[1764785579291,0.32266547,3137.4,3137.0,3.73521253]
[1764785579494,0.8798,3137.1,3137.0,4.10521253]
[1764785579695,1.20246547,3137.1,3137.0,4.10521253]
[1764785579893,1.20246547,3137.1,3137.0,5.03501253]
[1764785580194,1.20246547,3137.1,3137.0,1.82721253]
[1764785580496,2.07146547,3137.1,3137.0,0.00401253]
[1764785580890,0.32266547,3137.1,3137.0,1.82721253]
[1764785581098,1.9327635,3137.6,3137.0,1.82721253]
[1764785581099,0.8798,3137.4,3137.3,0.8934]
[1764785581293,1.2028869,3137.4,3137.3,0.8934]
[1764785581493,2.0718869,3137.4,3137.0,0.00401253]
[1764785581710,0.8798,3137.1,3137.0,0.00401253]
[1764785581900,2.0718869,3137.1,3137.0,0.00401253]
[1764785582504,1.2028869,3137.1,3137.0,0.89741253]
[1764785583003,0.3230869,3137.1,3137.0,1.82721253]
[1764785583705,0.8798,3137.1,3137.0,1.82721253]
[1764785583907,1.2028869,3137.1,3137.0,1.82721253]
[1764785584202,2.0164869,3137.1,3137.0,0.00401253]
[1764785586004,1.1388869,3137.1,3137.0,0.87731253]
[1764785586194,0.3230869,3137.1,3137.0,1.80051253]
[1764785586395,2.52777712,3137.5,3137.4,0.8733]
[1764785586599,1.13909197,3137.5,3137.4,0.8733]
[1764785587105,1.13909197,3137.5,3137.4,1.7466]
[1764785587106,2.01669197,3137.5,3137.4,1.7466]
[1764785587306,2.01669197,3137.5,3137.4,0.8733]
[1764785587604,0.00475292,3138.9,3137.9,3.2078]
[1764785587802,0.5038,3139.0,3138.8,3.2078]
[1764785587999,0.5038,3140.0,3138.8,3.2078]
[1764785588000,0.5038,3140.0,3138.8,4.04306616]
[1764785588204,0.5038,3140.0,3139.4,3.2078]
[1764785588601,0.50777236,3139.5,3139.4,3.21155222]
[1764785590201,0.5038,3140.0,3139.4,3.21155222]
[1764785590409,0.5038,3140.0,3139.9,3.2078]
[1764785590709,1.3196,3140.0,3139.9,3.2078]
[1764785591002,0.5038,3140.0,3139.9,3.2078]
[1764785591205,2.19978371,3140.0,3139.9,3.2078]
[1764785593215,0.50638371,3140.0,3139.9,3.2078]
[1764785593505,2.19978371,3140.0,3139.9,3.2078]
[1764785594312,0.50638371,3140.0,3139.5,3.2078]
[1764785594507,1.6934,3139.6,3139.5,3.2078]
[1764785594711,2.1972,3139.2,3139.1,0.00477859]
[1764785595013,4.1299635,3139.2,3139.1,0.00477859]
[1764785595211,0.5038,3139.2,3139.1,0.00477859]
[1764785595917,0.5038,3139.2,3139.1,0.0082967]
[1764785598117,1.3196,3139.2,3139.1,0.0082967]
[1764785598312,0.5038,3139.2,3139.1,0.0082967]
[1764785599413,2.1972,3139.2,3139.1,0.0082967]
[1764785599620,1.6934,3139.1,3139.0,3.2078]
[1764785600022,1.6934,3138.7,3138.6,3.2078]
[1764785600320,1.6934,3138.3,3138.2,3.2078]
[1764785600711,1.6934,3138.3,3138.2,3.21125185]
[1764785600910,1.6934,3138.0,3137.9,0.00477859]
[1764785601115,2.1972,3138.0,3137.9,0.00477859]
[1764785601417,4.9012,3138.3,3137.9,0.00477859]
[1764785601610,0.8158,3138.0,3137.9,0.00477859]
[1764785602118,0.8158,3138.0,3137.9,0.00719724]
[1764785602318,3.2078,3138.3,3137.9,0.88049724]
[1764785603316,0.00477859,3138.6,3138.5,1.7965]
[1764785603509,3.2078,3139.2,3139.1,0.8733]
[1764785603712,3.2078,3139.2,3139.1,1.7965]
[1764785605022,0.50857859,3139.5,3139.1,1.7965]
[1764785605320,0.00477859,3139.5,3139.4,0.8733]
[1764785605719,0.82057859,3139.5,3138.9,3.2078]
[1764785606421,1.69817859,3139.5,3138.9,3.2078]
[1764785606721,0.00477859,3139.5,3139.4,1.7965]
[1764785607518,0.82057859,3139.5,3138.9,3.2078]
[1764785608318,0.82057859,3139.5,3139.4,0.8733]
[1764785608519,1.69817859,3139.5,3138.9,3.2078]
[1764785608818,1.6934,3139.0,3138.9,3.2078]
[1764785610523,2.1972,3138.6,3138.5,3.2078]
[1764785611015,1.6934,3138.2,3138.1,3.2078]
[1764785611221,2.1972,3138.0,3137.9,0.00719724]
[1764785611412,3.7116,3138.6,3137.9,1.80369724]
[1764785613411,3.2078,3138.6,3138.5,1.9117]
[1764785613920,3.2078,3138.6,3138.5,8.7464]
[1764785614220,0.00477859,3139.5,3138.5,8.7464]
[1764785614221,0.00477859,3139.5,3139.4,2.2573]
[1764785614420,0.00477859,3139.5,3139.4,5.4651]
[1764785616224,0.00258371,3140.0,3139.4,5.4651]
[1764785616420,1.87288371,3140.0,3139.9,3.2078]
[1764785616723,0.00258371,3140.0,3139.9,3.2078]
[1764785617124,2.71058371,3140.0,3139.9,3.2078]
[1764785617521,2.71058371,3140.0,3139.6,0.00477859]
[1764785617522,2.708,3139.7,3139.6,0.00477859]
[1764785617923,1.1297,3139.8,3139.6,0.00477859]